bitfinex-derivatives/quotes_BTCF0:USTF0_20251030
["timestamp","ask_amount","ask_price","bid_price","bid_amount"]
[1761836094088,0.41901,108340.0,108330.0,0.02346]
[1761836094289,0.71901,108340.0,108330.0,0.02346]
[1761836094599,0.41901,108340.0,108330.0,0.02346]
[1761836094801,0.75901,108340.0,108330.0,0.02346]
[1761836095197,0.41901,108340.0,108330.0,0.02346]
[1761836095390,0.70901,108340.0,108330.0,0.02346]
[1761836095699,0.04501,108330.0,108320.0,0.41726139]
[1761836095896,0.09501,108330.0,108320.0,0.41726139]
[1761836096288,0.09501,108330.0,108320.0,0.65747531]
[1761836096596,0.09501,108330.0,108320.0,0.41726139]
[1761836096996,0.10001,108330.0,108320.0,0.41726139]
[1761836097397,0.10001,108330.0,108320.0,0.65747531]
[1761836097598,0.10001,108330.0,108320.0,0.41726139]
[1761836100302,0.05872,108320.0,108310.0,0.4550215]
[1761836100603,0.10872,108320.0,108310.0,0.40553139]
[1761836100808,0.10872,108320.0,108310.0,0.41726139]
[1761836100990,0.41952,108320.0,108310.0,0.03300139]
[1761836101194,0.04501,108310.0,108300.0,0.09196518]
[1761836101496,0.09501,108310.0,108300.0,0.09196518]
[1761836101697,0.59581,108310.0,108300.0,0.0824915]
[1761836101898,1.15782392,108310.0,108300.0,0.03300139]
[1761836102203,1.16736933,108310.0,108300.0,0.03300139]
[1761836102399,1.15782392,108310.0,108300.0,0.03300139]
[1761836103609,1.16058392,108310.0,108300.0,0.03300139]
[1761836104298,1.16282392,108310.0,108300.0,0.03300139]
[1761836104802,1.16558392,108310.0,108300.0,0.03300139]
[1761836104995,0.46081,108310.0,108300.0,0.03300139]
[1761836105200,0.42181,108310.0,108300.0,0.1059515]
[1761836105501,0.42181,108310.0,108300.0,0.43375011]
[1761836106409,0.05001,108310.0,108300.0,0.75555011]
[1761836106709,0.07001,108310.0,108300.0,0.75555011]
[1761836107105,0.05001,108310.0,108300.0,0.75555011]
[1761836107305,0.07001,108310.0,108300.0,0.75555011]
[1761836107902,0.05001,108310.0,108300.0,0.75555011]
[1761836108106,0.07001,108310.0,108300.0,0.75555011]
[1761836108504,0.07001,108310.0,108300.0,0.43375011]
[1761836108708,0.58081,108310.0,108300.0,0.04949011]
[1761836108917,0.07001,108310.0,108300.0,0.43375011]
[1761836110505,0.28001,108310.0,108300.0,0.43375011]
[1761836110702,0.05001,108310.0,108300.0,0.43375011]
[1761836111002,0.10001,108310.0,108300.0,0.43375011]
[1761836112007,0.04769,108310.0,108300.0,0.83586489]
[1761836112311,0.005,108310.0,108300.0,0.87871608]
[1761836112711,0.05001,108310.0,108300.0,0.78637478]
[1761836112902,0.07001,108310.0,108300.0,0.70606]
[1761836113609,0.005,108310.0,108300.0,1.80051608]
[1761836113814,0.004,108310.0,108300.0,1.26938801]
[1761836114006,0.004,108310.0,108300.0,1.86938801]
[1761836114714,0.004,108310.0,108300.0,1.86662801]
[1761836114914,0.05699,108340.0,108330.0,0.02346]
[1761836115111,0.0982437,108340.0,108330.0,0.70606]
[1761836115412,0.0982437,108340.0,108330.0,2.60817478]
[1761836115413,0.0212537,108340.0,108330.0,2.60817478]
[1761836115710,0.0412537,108340.0,108330.0,2.60817478]
[1761836115909,0.0564137,108340.0,108330.0,2.20606]
[1761836116108,0.03516,108340.0,108330.0,2.20606]
[1761836116310,0.07626,108340.0,108330.0,1.92193434]
[1761836116514,0.05626,108340.0,108330.0,1.87253]
[1761836116707,0.07626,108340.0,108330.0,2.23195581]
[1761836117911,0.08126,108340.0,108330.0,1.91119581]
[1761836118611,0.08126,108340.0,108330.0,1.91019581]
[1761836118914,0.08126,108340.0,108330.0,1.91119581]
[1761836119316,0.025,108340.0,108330.0,2.31331059]
[1761836119710,0.005,108340.0,108330.0,2.31331059]
[1761836121405,0.025,108340.0,108330.0,2.31331059]
[1761836121608,0.005,108340.0,108330.0,2.31331059]
[1761836121809,0.08212,108340.0,108330.0,1.91119581]
[1761836122208,0.08212,108340.0,108330.0,2.23291581]
[1761836122819,0.08212,108340.0,108330.0,2.23287581]
[1761836123118,0.08212,108340.0,108330.0,2.18348]
[1761836123318,0.08212,108340.0,108330.0,2.23287581]
[1761836124218,0.08212,108340.0,108330.0,2.18348]
[1761836124421,0.08212,108340.0,108330.0,1.8618]
[1761836125124,0.06212,108340.0,108330.0,1.8618]
[1761836125315,0.08212,108340.0,108330.0,1.8618]
[1761836125711,0.74292,108340.0,108330.0,1.501]
[1761836125912,0.42292,108340.0,108330.0,1.501]
[1761836126420,0.05712,108320.0,108310.0,0.04939581]
[1761836126610,0.05712,108320.0,108310.0,0.43365581]
[1761836126808,0.07712,108320.0,108310.0,0.43365581]
[1761836127519,0.07712,108320.0,108310.0,0.07285581]
[1761836128014,0.07712,108320.0,108310.0,0.43665581]
[1761836128217,0.03363,108320.0,108310.0,0.43665581]
[1761836128616,0.0369,108320.0,108310.0,0.43365581]
[1761836128816,0.001,108320.0,108310.0,0.93110269]
[1761836129014,0.001,108320.0,108310.0,0.83877059]
[1761836129515,0.001,108320.0,108310.0,0.83777059]
[1761836130908,0.021,108320.0,108310.0,0.83777059]
[1761836131112,0.001,108320.0,108310.0,0.93010279]
[1761836131511,0.001,108320.0,108310.0,0.83777059]
[1761836132323,0.001,108320.0,108310.0,0.78837478]
[1761836132625,0.05712,108340.0,108330.0,0.02346]
[1761836132827,0.10712,108340.0,108330.0,0.38426]
[1761836133312,0.10712,108340.0,108330.0,0.02346]
[1761836133518,0.04349,108330.0,108320.0,0.75523616]
[1761836133719,0.06349,108330.0,108320.0,0.7059]
[1761836134224,0.06349,108330.0,108320.0,0.75523616]
[1761836134519,0.04349,108330.0,108320.0,0.75523616]
[1761836134823,0.06349,108330.0,108320.0,0.75523616]
[1761836135424,0.06349,108330.0,108320.0,0.75623616]
[1761836135623,0.04749,108330.0,108320.0,0.39543616]
[1761836135826,0.34749,108330.0,108320.0,0.3461]
[1761836136126,0.06749,108330.0,108320.0,0.7069]
[1761836136316,0.06749,108330.0,108320.0,0.75623616]
[1761836136712,0.04749,108330.0,108320.0,0.75623616]
[1761836137026,0.04749,108330.0,108320.0,1.15835094]
[1761836137027,0.024,108330.0,108320.0,1.15835094]
[1761836137616,0.06749,108330.0,108320.0,1.15835094]
[1761836137928,0.06749,108330.0,108320.0,0.75623616]
[1761836138324,0.024,108330.0,108320.0,0.75623616]
[1761836138529,0.024,108330.0,108320.0,0.84856076]
[1761836138725,0.04627,108330.0,108320.0,0.75623616]
[1761836139539,0.06749,108330.0,108320.0,0.75623616]
[1761836141226,0.06749,108330.0,108320.0,0.7069]
[1761836141723,0.06749,108330.0,108320.0,0.7563149]
[1761836142329,0.04749,108330.0,108320.0,0.7069]
[1761836142529,0.33749,108330.0,108320.0,0.7069]
[1761836142718,0.69829,108330.0,108320.0,0.07389031]
[1761836142921,0.33749,108330.0,108320.0,0.39549031]
[1761836143122,0.06749,108330.0,108320.0,0.75629031]
[1761836143517,0.06749,108330.0,108320.0,0.70686]
[1761836143721,0.04749,108330.0,108320.0,0.70686]
[1761836143930,0.004,108330.0,108320.0,0.70686]
[1761836144133,0.0599,108330.0,108320.0,0.70686]
[1761836145231,0.024,108330.0,108320.0,0.70686]
[1761836145422,0.0599,108330.0,108320.0,0.70686]
[1761836145624,0.024,108330.0,108320.0,0.70686]
[1761836146029,0.004,108330.0,108320.0,0.70686]
[1761836146227,0.004,108330.0,108320.0,1.10897478]
[1761836148226,0.003,108330.0,108320.0,1.27017021]
[1761836148425,0.05712,108350.0,108340.0,0.02346]
[1761836148632,0.12888695,108350.0,108340.0,0.02346]
[1761836149433,0.40888695,108350.0,108340.0,0.02346]
[1761836149629,0.07888695,108350.0,108340.0,0.02346]
[1761836150024,0.12888695,108350.0,108340.0,0.02346]
[1761836150232,0.12888695,108350.0,108340.0,0.02446]
[1761836150637,0.40888695,108350.0,108340.0,0.02446]
[1761836150938,0.38888695,108350.0,108340.0,0.02446]
[1761836151127,0.37888695,108350.0,108340.0,0.02446]
[1761836151635,0.08188695,108350.0,108340.0,0.02446]
[1761836151842,0.13188695,108350.0,108340.0,0.02446]
[1761836152131,0.36188695,108350.0,108340.0,0.02446]
[1761836152331,0.13188695,108350.0,108340.0,0.02446]
[1761836153338,0.13188695,108350.0,108340.0,0.07392041]
[1761836153547,0.38188695,108350.0,108340.0,0.02446]
[1761836153742,0.13188695,108350.0,108340.0,0.02446]
[1761836154739,0.13188695,108350.0,108340.0,0.07392041]
[1761836156039,0.08188695,108350.0,108340.0,0.07392041]
[1761836156339,0.10188695,108350.0,108340.0,0.07392041]
[1761836157437,0.08188695,108350.0,108340.0,0.07392041]
[1761836157734,0.10188695,108350.0,108340.0,0.43472041]
[1761836157942,0.10188695,108350.0,108340.0,0.52702651]
[1761836158238,0.10188695,108350.0,108340.0,0.43472041]
[1761836158741,0.08188695,108350.0,108340.0,0.43472041]
[1761836159039,0.10188695,108350.0,108340.0,0.07392041]
[1761836159339,0.42188695,108350.0,108340.0,0.07392041]
[1761836159535,0.10188695,108350.0,108340.0,0.07392041]
[1761836159734,0.10188695,108350.0,108340.0,0.43472041]
[1761836160839,0.41188695,108350.0,108340.0,0.75620041]
[1761836161045,0.10188695,108350.0,108340.0,0.75620041]
[1761836161232,0.08188695,108350.0,108340.0,0.75620041]
[1761836161534,0.36188695,108350.0,108340.0,0.01273]
[1761836161738,0.72268695,108350.0,108340.0,0.001]
[1761836162035,1.73756173,108350.0,108340.0,0.001]
[1761836162235,1.44904173,108350.0,108340.0,0.001]
[1761836162541,1.04416695,108350.0,108340.0,0.001]
[1761836163835,1.04416695,108350.0,108340.0,0.01273]
[1761836164140,1.04416695,108350.0,108340.0,0.001]
[1761836164338,0.72268695,108350.0,108340.0,0.001]
[1761836164528,1.04416695,108350.0,108340.0,0.001]
[1761836164930,1.04416695,108350.0,108340.0,0.01273]
[1761836165138,1.04416695,108350.0,108340.0,0.001]
[1761836165338,1.65416695,108350.0,108340.0,0.001]
[1761836165535,1.05692695,108350.0,108340.0,0.001]
[1761836165736,0.0579,108340.0,108330.0,0.04946041]
[1761836166039,0.77322695,108340.0,108330.0,0.04946041]
[1761836166431,0.78271278,108340.0,108330.0,0.04946041]
[1761836166739,0.0579,108330.0,108320.0,0.16524381]
[1761836166945,0.0979,108330.0,108320.0,0.16524381]
[1761836167240,0.0979,108330.0,108320.0,0.43372041]
[1761836167445,0.0979,108330.0,108320.0,0.04946041]
[1761836167628,0.4587,108330.0,108320.0,0.04946041]
[1761836167833,0.0979,108330.0,108320.0,0.42199041]
[1761836168033,0.0979,108330.0,108320.0,0.38426]
[1761836168240,0.0579,108340.0,108330.0,0.02346]
[1761836168434,0.1079,108340.0,108330.0,0.43375358]
[1761836168743,0.1079,108340.0,108330.0,0.87868968]
[1761836168744,0.0779,108340.0,108330.0,0.87868968]
[1761836168947,0.8079,108340.0,108330.0,0.3608]
[1761836169243,0.0579,108320.0,108310.0,0.42691193]
[1761836169429,0.1079,108320.0,108310.0,0.43864193]
[1761836169638,0.1079,108320.0,108310.0,0.69025092]
[1761836169938,0.1079,108320.0,108310.0,0.38426]
[1761836170732,0.0579,108320.0,108310.0,0.7057]
[1761836170935,0.0579,108310.0,108300.0,1.56611193]
[1761836171136,0.50777899,108310.0,108300.0,1.56611193]
[1761836171435,0.0579,108300.0,108280.0,0.44377765]
[1761836171637,0.0579,108290.0,108280.0,0.76521765]
[1761836171832,0.0779,108290.0,108280.0,0.08297765]
[1761836172245,0.0779,108290.0,108280.0,0.38426]
[1761836172437,0.0579,108300.0,108290.0,0.02346]
[1761836172638,0.0779,108300.0,108290.0,0.41094415]
[1761836173747,0.0579,108300.0,108290.0,0.34494]
[1761836173949,0.1079,108300.0,108290.0,0.34494]
[1761836174247,0.0779,108300.0,108290.0,0.01173]
[1761836174446,0.04431,108290.0,108280.0,0.78157821]
[1761836174647,0.06431,108290.0,108280.0,0.78157821]
[1761836175348,0.04431,108290.0,108280.0,0.78157821]
[1761836175648,0.06431,108290.0,108280.0,0.78157821]
[1761836177145,0.06431,108290.0,108280.0,0.71557406]
[1761836177650,0.06431,108290.0,108280.0,0.78153907]
[1761836178245,0.04217,108290.0,108280.0,0.78153907]
[1761836178445,0.06487,108290.0,108280.0,1.02141806]
[1761836178948,0.05826,108300.0,108290.0,0.02346]
[1761836179251,0.10826,108300.0,108290.0,0.08942501]
[1761836179836,0.05828,108290.0,108280.0,0.06596501]
[1761836180043,0.05828,108280.0,108270.0,0.06596501]
[1761836180341,0.31815899,108280.0,108270.0,0.06596501]
[1761836180547,0.67895899,108280.0,108270.0,0.06596501]
[1761836180748,0.10828,108280.0,108270.0,0.06596501]
[1761836180945,0.10828,108280.0,108270.0,0.0990507]
[1761836181151,0.10828,108280.0,108270.0,0.07769501]
[1761836181347,0.10828,108280.0,108270.0,0.45022501]
[1761836181747,0.30033483,108280.0,108270.0,0.08942501]
[1761836182147,0.10828,108280.0,108270.0,0.64227984]
[1761836182348,0.0583,108290.0,108280.0,0.02346]
[1761836182651,0.02,108290.0,108280.0,0.08942501]
[1761836182857,0.61113483,108300.0,108290.0,0.02346]
[1761836183147,0.66113483,108300.0,108290.0,0.34498]
[1761836183349,0.46908,108300.0,108290.0,0.34498]
[1761836184144,0.10828,108300.0,108290.0,0.34498]
[1761836184346,0.10828,108300.0,108290.0,0.70578]
[1761836184747,0.07828,108300.0,108290.0,0.70578]
[1761836185248,0.05828,108300.0,108290.0,0.70578]
[1761836185549,0.07828,108300.0,108290.0,0.70578]
[1761836186340,0.05828,108300.0,108290.0,0.70578]
[1761836186547,0.07828,108300.0,108290.0,0.70578]
[1761836188644,0.07828,108300.0,108290.0,0.34498]
[1761836188850,0.0574,108280.0,108270.0,0.39392701]
[1761836189045,0.0574,108280.0,108270.0,0.71544701]
[1761836189251,0.0774,108280.0,108270.0,0.39392701]
[1761836189456,0.0774,108280.0,108270.0,0.71544701]
[1761836189647,0.0574,108280.0,108270.0,0.39392701]
[1761836189847,0.0774,108280.0,108270.0,0.71544701]
[1761836190652,0.0574,108280.0,108270.0,0.71544701]
[1761836192758,0.0774,108280.0,108270.0,0.71544701]
[1761836193271,0.0574,108280.0,108270.0,0.71544701]
[1761836193968,0.0774,108280.0,108270.0,0.71544701]
[1761836194563,0.0574,108280.0,108270.0,0.71544701]
[1761836194970,0.0774,108280.0,108270.0,0.71544701]
[1761836196167,0.0574,108280.0,108270.0,0.71544701]
[1761836196567,0.01271,108290.0,108280.0,0.02346]
[1761836196568,0.0574,108290.0,108280.0,0.02346]
[1761836196768,0.0774,108290.0,108280.0,0.38426]
[1761836197361,0.0574,108290.0,108280.0,0.38426]
[1761836197567,0.0774,108290.0,108280.0,0.38426]
[1761836198175,0.1074,108290.0,108280.0,0.38426]
[1761836198475,0.0574,108290.0,108280.0,0.38426]
[1761836198673,0.03445,108290.0,108280.0,0.38426]
[1761836199273,0.0574,108290.0,108280.0,0.38426]
[1761836199674,0.0774,108290.0,108280.0,0.70578]
[1761836199875,0.1074,108290.0,108280.0,0.34498]
[1761836200075,0.0574,108280.0,108270.0,0.39392701]
[1761836200263,0.0774,108280.0,108270.0,0.71544701]
[1761836201267,0.0574,108280.0,108270.0,0.71544701]
[1761836201668,0.0774,108280.0,108270.0,0.38426]
[1761836201873,0.0774,108280.0,108270.0,0.70578]
[1761836202974,0.0774,108280.0,108270.0,0.02346]
[1761836203173,0.0574,108270.0,108260.0,1.8608]
[1761836203370,0.0774,108270.0,108260.0,2.18232]
[1761836203572,0.0574,108270.0,108260.0,2.18232]
[1761836203772,0.0774,108270.0,108260.0,2.18232]
[1761836204176,0.29738225,108270.0,108260.0,1.8608]
[1761836204376,0.0574,108260.0,108250.0,0.02356872]
[1761836204578,0.1074,108260.0,108250.0,0.34508872]
[1761836204775,0.1074,108260.0,108250.0,0.70588872]
[1761836205076,0.0574,108260.0,108250.0,0.70588872]
[1761836205278,0.0774,108260.0,108250.0,0.70588872]
[1761836205976,0.0574,108260.0,108250.0,0.70588872]
[1761836206180,0.0774,108260.0,108250.0,0.70588872]
[1761836209380,0.0574,108270.0,108260.0,0.02346]
[1761836209579,0.0774,108270.0,108260.0,0.38426]
[1761836212580,0.1074,108270.0,108260.0,0.38426]
[1761836212883,0.1074,108270.0,108260.0,0.02346]
[1761836213274,0.29950404,108270.0,108260.0,0.02346]
[1761836214090,0.1074,108270.0,108260.0,0.02346]
[1761836214278,0.29950404,108270.0,108260.0,0.02346]
[1761836214775,0.26950404,108270.0,108260.0,0.57636404]
[1761836215176,0.24950404,108270.0,108260.0,0.57636404]
[1761836215489,0.26950404,108270.0,108260.0,0.38426]
[1761836215689,0.26950404,108270.0,108260.0,0.57636404]
[1761836216283,0.0774,108270.0,108260.0,0.57636404]
[1761836216583,0.29950404,108270.0,108260.0,0.21556404]
[1761836216784,0.29950404,108270.0,108260.0,0.02346]
[1761836217186,0.29950404,108270.0,108260.0,0.38426]
[1761836217380,0.29950404,108270.0,108260.0,0.02346]
[1761836217580,0.29950404,108270.0,108260.0,0.38426]
[1761836217581,0.30350404,108270.0,108260.0,0.38426]
[1761836217776,0.30350404,108270.0,108260.0,0.02346]
[1761836217986,0.30350404,108270.0,108260.0,0.38426]
[1761836218790,0.27350404,108270.0,108260.0,0.38426]
[1761836218990,0.0814,108270.0,108260.0,0.57636404]
[1761836219194,0.0614,108270.0,108260.0,0.57636404]
[1761836219391,0.0814,108270.0,108260.0,0.57636404]
[1761836219892,0.0614,108270.0,108260.0,0.57636404]
[1761836220087,0.27350404,108270.0,108260.0,0.57636404]
[1761836220288,0.27350404,108270.0,108260.0,0.38426]
[1761836222292,0.05622,108260.0,108250.0,0.77185373]
[1761836222482,0.26832404,108260.0,108250.0,0.77185373]
[1761836222687,0.26832404,108260.0,108250.0,0.70588872]
[1761836222891,0.26832404,108260.0,108250.0,0.89799276]
[1761836223088,0.24832404,108260.0,108250.0,0.89799276]
[1761836223289,0.26832404,108260.0,108250.0,0.70588872]
[1761836223593,0.26832404,108260.0,108250.0,0.02356872]
[1761836223788,0.26832404,108260.0,108250.0,0.53719276]
[1761836223983,0.26832404,108260.0,108250.0,0.89799276]
[1761836224189,0.25132404,108260.0,108250.0,0.89799276]
[1761836224492,0.27132404,108260.0,108250.0,0.89799276]
[1761836224695,0.27132404,108260.0,108250.0,0.89899276]
[1761836224896,0.07922,108260.0,108250.0,0.89899276]
[1761836225210,0.05922,108260.0,108250.0,0.89899276]
[1761836225404,0.023,108260.0,108250.0,0.89899276]
[1761836225697,0.07922,108260.0,108250.0,0.89899276]
[1761836226493,0.27132404,108260.0,108250.0,0.89899276]
[1761836226696,0.27132404,108260.0,108250.0,0.70688872]
[1761836226898,0.27132404,108260.0,108250.0,0.38536872]
[1761836227100,0.46342808,108260.0,108250.0,0.02456872]
[1761836227288,1.66490808,108260.0,108250.0,0.00110872]
[1761836227486,1.06490808,108260.0,108250.0,0.00110872]
[1761836227900,1.06766808,108260.0,108250.0,0.00110872]
[1761836228092,1.06490808,108260.0,108250.0,0.00110872]
[1761836228594,1.62057212,108260.0,108250.0,0.00110872]
[1761836228793,0.05622,108240.0,108230.0,0.42676501]
[1761836228987,0.95190808,108240.0,108230.0,0.42676501]
[1761836229390,0.99407927,108240.0,108230.0,0.3608]
[1761836229592,1.00358819,108240.0,108230.0,0.3608]
[1761836229794,0.05622,108230.0,108220.0,1.8608]
[1761836230194,0.07622,108230.0,108220.0,1.8608]
[1761836230691,0.05622,108230.0,108220.0,1.8608]
[1761836230996,0.03399007,108240.0,108230.0,0.02346]
[1761836231184,0.07730007,108240.0,108230.0,0.38426]
[1761836231584,0.07730007,108240.0,108230.0,0.70574]
[1761836232097,0.07730007,108240.0,108230.0,0.70674]
[1761836232497,0.05730007,108240.0,108230.0,0.70674]
[1761836232690,0.07730007,108240.0,108230.0,0.70674]
[1761836233092,0.05730007,108240.0,108230.0,0.70674]
[1761836233491,0.07730007,108240.0,108230.0,0.70674]
[1761836233902,0.00108007,108240.0,108230.0,1.10954418]
[1761836234102,8.007e-05,108240.0,108230.0,1.10954418]
[1761836234502,8.007e-05,108240.0,108230.0,1.80194548]
[1761836234799,8.007e-05,108240.0,108230.0,1.70954418]
[1761836235096,0.00208007,108240.0,108230.0,1.80194528]
[1761836235691,0.00208007,108240.0,108230.0,1.70954418]
[1761836235887,0.02208007,108240.0,108230.0,1.70954418]
[1761836236092,0.02208007,108240.0,108230.0,0.62446]
[1761836236093,0.00208007,108240.0,108230.0,0.62446]
[1761836236298,0.00208007,108240.0,108230.0,1.30678]
[1761836236493,0.07973007,108240.0,108230.0,0.70678]
[1761836236801,0.05973007,108240.0,108230.0,0.70678]
[1761836236996,0.07973007,108240.0,108230.0,0.38526]
[1761836237201,0.07973007,108240.0,108230.0,0.70674]
[1761836237403,0.05671007,108240.0,108230.0,0.70674]
[1761836237792,0.03671007,108240.0,108230.0,0.70674]
[1761836237988,0.00208007,108240.0,108230.0,0.70674]
[1761836238198,0.00208007,108240.0,108230.0,0.7991411]
[1761836238504,0.00208007,108240.0,108230.0,1.20470528]
[1761836238698,0.3983713,108280.0,108270.0,0.01066]
[1761836238997,0.08167824,108280.0,108270.0,0.7036]
[1761836239301,0.07865824,108280.0,108270.0,0.7036]
[1761836239595,0.12167824,108280.0,108270.0,0.3428]
[1761836239794,0.12172189,108280.0,108270.0,0.3428]
[1761836240395,0.10172189,108280.0,108270.0,0.7166]
[1761836240804,0.08172189,108280.0,108270.0,0.7166]
[1761836241107,0.08172189,108280.0,108270.0,0.7416]
[1761836241108,0.10372189,108280.0,108270.0,0.7416]
[1761836241296,0.08372189,108280.0,108270.0,0.7416]
[1761836241807,0.02607189,108280.0,108270.0,0.833967]
[1761836241999,0.02507189,108280.0,108270.0,0.828967]
[1761836242193,0.02507189,108280.0,108270.0,1.23177118]
[1761836242393,0.02507189,108280.0,108270.0,0.828967]
[1761836242595,0.02507189,108280.0,108270.0,0.83848872]
[1761836242795,0.02507189,108280.0,108270.0,0.74612172]
[1761836243198,0.10207189,108280.0,108270.0,0.74612172]
[1761836243407,0.10207189,108280.0,108270.0,0.41512]
[1761836243595,0.10207189,108280.0,108270.0,0.73656]
[1761836245001,0.10207189,108280.0,108270.0,0.41512]
[1761836245204,0.10207189,108280.0,108270.0,0.73656]
[1761836245604,0.08207189,108280.0,108270.0,0.73656]
[1761836245794,0.10207189,108280.0,108270.0,0.73656]
[1761836246000,0.03837189,108280.0,108270.0,0.73656]
[1761836246606,0.02507189,108280.0,108270.0,0.8289261]
[1761836247192,0.02507189,108280.0,108270.0,1.13936418]
[1761836247398,0.06088189,108280.0,108270.0,0.73656]
[1761836247603,0.08207189,108280.0,108270.0,0.73656]
[1761836247800,0.06088189,108280.0,108270.0,0.41512]
[1761836248003,0.08207189,108280.0,108270.0,0.73652]
[1761836248302,0.02507189,108280.0,108270.0,0.8288862]
[1761836249003,0.02507189,108280.0,108270.0,0.5074862]
[1761836249204,0.02507189,108280.0,108270.0,0.8288862]
[1761836249403,0.02507189,108280.0,108270.0,1.23169038]
[1761836249603,0.02507189,108280.0,108270.0,1.23445038]
[1761836249909,0.0246711,108280.0,108270.0,1.23169038]
[1761836250110,0.0246711,108280.0,108270.0,1.23445038]
[1761836250699,0.0246711,108280.0,108270.0,1.23169038]
[1761836251009,0.0804811,108280.0,108270.0,0.41512]
[1761836251304,0.1016711,108280.0,108270.0,0.73652]
[1761836251494,0.0816711,108280.0,108270.0,0.73652]
[1761836251903,0.0816711,108280.0,108270.0,0.41512]
[1761836252110,0.1016711,108280.0,108270.0,0.41512]
[1761836252297,0.1006711,108280.0,108270.0,0.71648]
[1761836252502,0.1006711,108280.0,108270.0,0.73648]
[1761836252804,0.0806711,108280.0,108270.0,0.41512]
[1761836253005,0.1306711,108280.0,108270.0,0.72348]
[1761836253201,0.53347528,108280.0,108270.0,0.3808]
[1761836253607,0.53347528,108280.0,108270.0,0.02]
[1761836253809,0.89427528,108280.0,108270.0,0.02]
[1761836254311,0.89703528,108280.0,108270.0,0.02]
[1761836254500,0.0437,108270.0,108260.0,0.3608]
[1761836254707,0.11732745,108270.0,108260.0,0.37146]
[1761836254902,0.0437,108270.0,108260.0,0.38212]
[1761836255107,0.0937,108270.0,108260.0,0.38212]
[1761836255310,0.0937,108270.0,108260.0,0.37146]
[1761836255613,0.057,108260.0,108250.0,0.3608]
[1761836255912,0.10704365,108260.0,108250.0,0.3608]
[1761836256213,0.0437,108250.0,108240.0,0.38212]
[1761836256407,0.0637,108250.0,108240.0,0.38212]
[1761836257115,0.0937,108250.0,108240.0,0.37146]
[1761836257505,0.0637,108250.0,108240.0,0.37146]
[1761836258018,0.0637,108250.0,108240.0,0.38312]
[1761836258314,0.04251,108250.0,108240.0,0.38312]
[1761836258501,0.02251,108250.0,108240.0,0.38312]
[1761836258705,0.04251,108250.0,108240.0,0.38312]
[1761836258906,0.73920365,108260.0,108250.0,0.02132]
[1761836259208,0.77920365,108260.0,108250.0,0.02132]
[1761836259410,0.41840365,108260.0,108250.0,0.02132]
[1761836259607,0.10704365,108260.0,108250.0,0.38212]
[1761836259804,0.01334365,108260.0,108250.0,0.4745034]
[1761836260004,0.03334365,108260.0,108250.0,0.38212]
[1761836260300,0.03585365,108260.0,108250.0,0.38212]
[1761836260500,0.05585365,108260.0,108250.0,0.38212]
[1761836260699,0.05585365,108260.0,108250.0,0.70348]
[1761836261706,0.07704365,108260.0,108250.0,0.70348]
[1761836262016,0.07704365,108260.0,108250.0,0.38212]
[1761836262213,0.08204365,108260.0,108250.0,0.38212]
[1761836263119,0.3989513,108300.0,108260.0,0.0923748]
[1761836263303,0.03720297,108300.0,108290.0,0.3608]
[1761836263612,0.03720297,108300.0,108280.0,1.08496418]
[1761836263613,0.08090297,108300.0,108280.0,1.08496418]
[1761836263810,0.02389691,108300.0,108290.0,0.3608]
[1761836264013,0.02389691,108300.0,108290.0,0.4531501]
[1761836264216,0.01272,108310.0,108290.0,0.85595428]
[1761836264416,0.03660515,108310.0,108300.0,0.4531408]
[1761836264620,0.02388515,108310.0,108300.0,0.4531408]
[1761836264914,0.02388515,108310.0,108300.0,0.85594498]
[1761836265107,0.02388515,108310.0,108300.0,1.18941834]
[1761836265308,0.02388515,108310.0,108300.0,1.18665834]
[1761836266115,0.02388515,108310.0,108300.0,1.18941834]
[1761836266912,0.02388515,108310.0,108300.0,1.18665834]
[1761836267219,0.43214189,108340.0,108310.0,0.0923291]
[1761836267418,0.12557264,108340.0,108330.0,0.3608]
[1761836268723,0.12557264,108340.0,108330.0,0.3748]
[1761836270230,0.12557264,108340.0,108330.0,0.3998]
[1761836270424,0.10557264,108340.0,108330.0,0.3998]
[1761836270625,0.06187264,108340.0,108330.0,0.3998]
[1761836270821,0.06187264,108340.0,108330.0,0.80260418]
[1761836271019,0.06187264,108340.0,108330.0,0.89491938]
[1761836271219,0.02368475,108340.0,108330.0,0.89491938]
[1761836271629,0.02368475,108340.0,108330.0,0.89767938]
[1761836272023,0.10235475,108340.0,108330.0,0.3998]
[1761836272327,0.08235475,108340.0,108330.0,0.3998]
[1761836272529,0.10235475,108340.0,108330.0,0.72104]
[1761836272720,0.03703475,108340.0,108330.0,0.72104]
[1761836272922,0.06014475,108340.0,108330.0,0.72104]
[1761836273121,0.03703475,108340.0,108330.0,0.7883565]
[1761836273327,0.02368475,108340.0,108330.0,0.69604]
[1761836273720,0.03703475,108340.0,108330.0,0.7883565]
[1761836273929,0.02368475,108340.0,108330.0,0.7883565]
[1761836274122,0.02368475,108340.0,108330.0,0.7743565]
[1761836274527,0.03703475,108340.0,108330.0,1.17716068]
[1761836274825,0.02368475,108340.0,108330.0,0.68204]
[1761836275024,0.02368475,108340.0,108330.0,1.17716048]
[1761836275621,0.02368475,108340.0,108330.0,1.25356214]
[1761836276928,0.02368475,108340.0,108330.0,1.25080214]
[1761836277227,0.02368475,108340.0,108330.0,1.25076214]
[1761836278025,0.03703475,108340.0,108330.0,1.25076214]
[1761836278221,0.02368475,108340.0,108330.0,1.25076214]
[1761836279128,0.10235475,108340.0,108330.0,0.3608]
[1761836279433,0.08235475,108340.0,108330.0,0.68196]
[1761836280122,0.03703475,108340.0,108330.0,0.7742764]
[1761836280522,0.08235475,108340.0,108330.0,0.7742764]
[1761836280725,0.05867,108340.0,108330.0,0.68196]
[1761836280929,0.07867,108340.0,108330.0,0.68196]
[1761836281322,0.05867,108340.0,108330.0,0.7742763]
[1761836281523,0.03646,108340.0,108330.0,0.7742763]
[1761836281725,0.05646,108340.0,108330.0,0.7742763]
[1761836281931,0.03646,108340.0,108330.0,0.7742763]
[1761836282436,0.01335,108340.0,108330.0,0.7742763]
[1761836282935,0.05862,108360.0,108330.0,1.17708048]
[1761836283134,0.10862,108360.0,108340.0,0.3608]
[1761836283428,0.10862,108360.0,108350.0,0.3608]